[Event "GER-chT Youth Countries 2020"]
[Site "Berlin"]
[Date "2020.10.04"]
[Round "7"]
[White "Brunner, Sophia"]
[Black "Moldovan, Tatiana"]
[Result "1-0"]
[ECO "A36"]
[WhiteElo "1850"]
[BlackElo "1480"]
[Annotator "NA"]
[PlyCount "111"]
[EventDate "2020.09.30"]
[EventType "team-tourn"]
[EventRounds "7"]
[EventCountry "GER"]
[SourceTitle "playchess.com"]
[Source "ChessBase"]
[SourceQuality "1"]
[TimeControl "30/5400+30:0"]

1. c4 {[%emt 0:00:00]} c5 {[%emt 0:05:15]} 2. Nc3 {[%emt 0:00:00]} Nc6 {[%emt 0:01:31]} 3. g3 {[%emt 0:00:00]} g6 {[%emt 0:07:55]} 4. Bg2 {[%emt 0:00:04]} Bg7 {[%emt 0:02:15]} 5. e4 {[%emt 0:00:08]} e6 {[%emt 0:01:30]} 6. Nge2 {[%emt 0:00:14]} Nge7 {[%emt 0:00:07]} 7. d3 {[%emt 0:00:32]} b6 {[%emt 0:00:24]} 8. O-O {[%emt 0:06:09]} O-O {[%emt 0:03:45]} 9. Be3 {[%emt 0:02:53]} Bb7 {[%emt 0:03:31]} 10. f4 {[%emt 0:06:30]} d6 {[%emt 0:01:39]} 11. a3 {[%emt 0:10:10]} Nd4 {[%emt 0:05:13]} 12. Bf2 {[%emt 0:01:00]} Nec6 {[%emt 0:02:12]} 13. Nxd4 {[%emt 0:01:30]} Nxd4 {[%emt 0:04:04]} 14. Ne2 {[%emt 0:00:28]} Nc6 {[%emt 0:00:29]} 15. Rb1 {[%emt 0:01:32]} a5 {[%emt 0:01:32]} 16. Qd2 {[%emt 0:05:09]} Qd7 {[%emt 0:07:19]} 17. Be3 {[%emt 0:14:02]} f5 {[%emt 0:04:07]} 18. h3 {[%emt 0:18:49]} Ba6 {[%emt 0:08:04]} 19. Rbc1 {[%emt 0:06:54]} Rab8 {[%emt 0:01:28]} 20. exf5 {[%emt 0:07:48]} exf5 {[%emt 0:01:22]} 21. d4 {[%emt 0:00:45]} cxd4 {[%emt 0:01:53]} 22. Nxd4 {[%emt 0:00:35]} Bb7 {[%emt 0:01:29]} 23. Bd5+ {[%emt 0:00:42]} Kh8 {[%emt 0:01:16]} 24. Ne6 {[%emt 0:00:56]} Rfe8 {[%emt 0:01:13]} 25. Nxg7 {[%emt 0:02:26]} Kxg7 {[%emt 0:01:54]} 26. Qc3+ {[%emt 0:06:18]} Kh6 {[%emt 0:01:51]} 27. g4 {[%emt 0:00:43]} fxg4 {[%emt 0:02:39]} 28. f5+ {[%emt 0:00:44]} Rxe3 {[%emt 0:00:42]} 29. Qxe3+ {[%emt 0:00:10]} g5 {[%emt 0:00:20]} 30. h4 {[%emt 0:06:29]} Qe7 {[%emt 0:01:09]} 31. hxg5+ {[%emt 1:30:39]} Qxg5 {[%emt 1:31:00]} 32. Qe6+ {[%emt 0:00:20]} Kh5 {[%emt 0:00:36]} 33. Qf7+ {[%emt 0:00:24]} Kh6 {[%emt 0:00:52]} 34. Rc2 {[%emt 0:00:57]} Qe3+ {[%emt 0:01:06]} 35. Kh1 {[%emt 0:00:27]} g3 {[%emt 0:02:36]} 36. Qf6+ {[%emt 0:00:42]} Kh5 {[%emt 0:01:15]} 37. Bf3+ {[%emt 0:00:27]} Qxf3+ {[%emt 0:00:53]} 38. Rxf3 {[%emt 0:00:01]} Ne5 {[%emt 0:00:38]} 39. Kg2 {[%emt 0:01:05]} Rg8 {[%emt 0:00:43]} 40. Rcc3 {[%emt 0:00:30]} Rg4 {[%emt 0:02:06]} 41. Qxd6 {[%emt 0:00:00]} Bxf3+ {[%emt 0:00:00]} 42. Rxf3 {[%emt 0:00:00]} Nxf3 {[%emt 0:00:00]} 43. Kxf3 {[%emt 0:00:00]} g2 {[%emt 0:00:00]} 44. Qh2+ {[%emt 0:00:00]} Kg5 {[%emt 0:00:00]} 45. Qg1 {[%emt 0:00:00]} Kxf5 {[%emt 0:00:00]} 46. c5 {[%emt 0:00:00]} Rf4+ {[%emt 0:00:00]} 47. Ke3 {[%emt 0:00:00]} Kg4 {[%emt 0:00:00]} 48. Qxg2+ {[%emt 0:00:00]} Kf5 {[%emt 0:00:00]} 49. Qd5+ {[%emt 0:00:00]} Kg6 {[%emt 0:00:00]} 50. Kxf4 {[%emt 0:00:00]} bxc5 {[%emt 0:00:00]} 51. Qxc5 {[%emt 0:00:00]} h5 {[%emt 0:00:00]} 52. Qg5+ {[%emt 0:00:00]} Kf7 {[%emt 0:00:00]} 53. Kf5 {[%emt 0:00:00]} h4 {[%emt 0:00:00]} 54. Qf6+ {[%emt 0:00:00]} Ke8 {[%emt 0:00:00]} 55. Ke6 {[%emt 0:00:00]} h3 {[%emt 0:00:00]} 56. Qe7# {[%emt 0:00:00]} 1-0

[Event "GER-chT Youth Countries 2020"]
[Site "Berlin"]
[Date "2020.10.04"]
[Round "7"]
[White "Grossmann, Piet"]
[Black "Zimmer, Luca"]
[Result "0-1"]
[ECO "C18"]
[WhiteElo "1849"]
[BlackElo "1690"]
[Annotator "NA"]
[PlyCount "44"]
[EventDate "2020.09.30"]
[EventType "team-tourn"]
[EventRounds "7"]
[EventCountry "GER"]
[SourceTitle "playchess.com"]
[Source "ChessBase"]
[SourceQuality "1"]
[TimeControl "30/5400+30:0"]

1. e4 {[%emt 0:00:00]} e6 {[%emt 0:00:00]} 2. d4 {[%emt 0:00:00]} d5 {[%emt 0:00:00]} 3. Nc3 {[%emt 0:00:02]} Bb4 {[%emt 0:00:00]} 4. e5 {[%emt 0:00:31]} c5 {[%emt 0:00:00]} 5. a3 {[%emt 0:00:11]} Bxc3+ {[%emt 0:00:00]} 6. bxc3 {[%emt 0:00:05]} Ne7 {[%emt 0:00:14]} 7. Qg4 {[%emt 0:00:24]} Qc7 {[%emt 0:00:44]} 8. Qxg7 {[%emt 0:02:17]} Rg8 {[%emt 0:00:15]} 9. Qxh7 {[%emt 0:00:07]} cxd4 {[%emt 0:00:05]} 10. Ne2 {[%emt 0:02:59]} dxc3 {[%emt 0:08:14]} 11. f4 {[%emt 0:01:54]} Nbc6 {[%emt 0:06:28]} 12. Qd3 {[%emt 0:00:14]} d4 {[%emt 0:03:36]} 13. Nxd4 {[%emt 0:06:59]} Nxd4 {[%emt 0:00:06]} 14. Qxd4 {[%emt 0:00:03]} Nf5 {[%emt 0:00:10]} 15. Qf2 {[%emt 0:19:09]} Bd7 {[%emt 0:05:17]} 16. Be2 {[%emt 0:08:53]} Rd8 {[%emt 0:08:31]} 17. Bf3 {[%emt 0:10:09]} Bc6 {[%emt 0:16:24]} 18. Rb1 {[%emt 0:14:02]} Bxf3 {[%emt 0:10:03]} 19. gxf3 {[%emt 0:02:30]} Qd7 {[%emt 0:03:13]} 20. Be3 {[%emt 0:13:52]} Nxe3 {[%emt 0:00:21]} 21. Qxe3 {[%emt 0:00:05]} Qd2+ {[%emt 0:19:09]} 22. Qxd2 {[%emt 0:00:01]} Rxd2 {[%emt 0:00:11]} 0-1

[Event "GER-chT Youth Countries 2020"]
[Site "Berlin"]
[Date "2020.10.04"]
[Round "7"]
[White "Rudolph, Eva"]
[Black "Haubold, Sebastian Marcel"]
[Result "1-0"]
[ECO "C44"]
[WhiteElo "1836"]
[BlackElo "1769"]
[Annotator "NA"]
[PlyCount "119"]
[EventDate "2020.09.30"]
[EventType "team-tourn"]
[EventRounds "7"]
[EventCountry "GER"]
[SourceTitle "playchess.com"]
[Source "ChessBase"]
[SourceQuality "1"]
[TimeControl "30/5400+30:0"]

1. e4 {[%emt 0:00:00]} e5 {[%emt 0:00:00]} 2. Nf3 {[%emt 0:00:00]} Nc6 {[%emt 0:00:00]} 3. d4 {[%emt 0:00:00]} exd4 {[%emt 0:00:00]} 4. Nxd4 {[%emt 0:00:00]} Qf6 {[%emt 0:01:23]} 5. Nxc6 {[%emt 0:00:55]} Bc5 {[%emt 0:02:10]} 6. Qd2 {[%emt 0:04:51]} bxc6 {[%emt 0:08:57]} 7. Bd3 {[%emt 0:08:01]} Ne7 {[%emt 0:03:02]} 8. O-O {[%emt 0:01:30]} O-O 9. Nc3 {[%emt 0:11:27]} Bd4 {[%emt 0:07:24]} 10. Rb1 {[%emt 0:06:20]} d5 11. Ne2 {[%emt 0:06:41]} Bb6 {[%emt 0:12:37]} 12. b3 {[%emt 0:04:48]} Qd6 {[%emt 0:09:34]} 13. Qg5 {[%emt 0:09:44]} f5 {[%emt 0:06:48]} 14. Bb2 {[%emt 0:10:48]} Qg6 15. Qxe7 {[%emt 0:09:20]} fxe4 {[%emt 0:03:10]} 16. Ba3 {[%emt 0:02:03]} Bb7 {[%emt 0:04:32]} 17. Bxe4 {[%emt 0:08:47]} dxe4 {[%emt 0:00:20]} 18. Ng3 {[%emt 0:00:36]} Rfe8 {[%emt 0:01:08]} 19. Qh4 {[%emt 0:00:54]} e3 {[%emt 0:03:57]} 20. fxe3 {[%emt 0:01:08]} Bxe3+ {[%emt 0:05:24]} 21. Kh1 {[%emt 0:00:08]} c5 {[%emt 0:05:27]} 22. Qh3 {[%emt 0:03:06]} Rad8 {[%emt 0:05:45]} 23. Rbd1 {[%emt 0:03:14]} Rxd1 {[%emt 0:01:22]} 24. Rxd1 {[%emt 0:00:10]} Qxc2 {[%emt 0:00:11]} 25. Re1 {[%emt 0:01:05]} Qd2 {[%emt 0:05:05]} 26. Rf1 {[%emt 0:00:52]} Ba6 {[%emt 0:00:10]} 27. Bc1 {[%emt 0:01:25]} Qxc1 {[%emt 0:01:33]} 28. Qd7 {[%emt 0:03:29]} Qxf1+ {[%emt 0:06:36]} 29. Nxf1 {[%emt 0:00:06]} Kf8 {[%emt 0:00:22]} 30. Qf5+ {[%emt 0:01:24]} Kg8 {[%emt 0:01:37]} 31. Qd5+ {[%emt 1:30:17]} Kf8 {[%emt 1:30:27]} 32. Qf3+ {[%emt 0:00:26]} Kg8 {[%emt 0:01:22]} 33. Nxe3 {[%emt 0:00:35]} Bb7 {[%emt 0:03:57]} 34. Qxb7 {[%emt 0:01:27]} Rxe3 {[%emt 0:00:06]} 35. Qc8+ {[%emt 0:00:33]} Kf7 {[%emt 0:01:17]} 36. Qxc7+ {[%emt 0:00:34]} Re7 {[%emt 0:00:37]} 37. Qf4+ {[%emt 0:00:14]} Ke8 {[%emt 0:00:13]} 38. Kg1 {[%emt 0:00:25]} g6 {[%emt 0:00:52]} 39. Qa4+ {[%emt 0:00:33]} Kd8 {[%emt 0:00:37]} 40. Qb5 {[%emt 0:01:02]} Rc7 {[%emt 0:00:30]} 41. Kf2 {[%emt 0:00:27]} Ke7 {[%emt 0:00:38]} 42. Ke3 {[%emt 0:00:38]} Kd6 {[%emt 0:00:00]} 43. Qa6+ {[%emt 0:00:00]} Ke5 {[%emt 0:00:00]} 44. a4 {[%emt 0:00:00]} Kd5 {[%emt 0:00:00]} 45. Qc4+ {[%emt 0:00:00]} Kd6 {[%emt 0:00:00]} 46. Ke4 {[%emt 0:00:00]} Re7+ {[%emt 0:00:00]} 47. Kd3 {[%emt 0:00:00]} Rd7 {[%emt 0:00:00]} 48. Kc3 {[%emt 0:00:00]} Rc7 {[%emt 0:00:00]} 49. Qf4+ {[%emt 0:00:00]} Kc6 {[%emt 0:00:00]} 50. a5 {[%emt 0:00:00]} Rd7 {[%emt 0:00:00]} 51. Qa4+ {[%emt 0:00:00]} Kd6 {[%emt 0:00:00]} 52. Kc4 {[%emt 0:00:00]} Rb7 {[%emt 0:00:00]} 53. a6 {[%emt 0:00:00]} Re7 {[%emt 0:00:00]} 54. Qa5 {[%emt 0:00:00]} Re4+ {[%emt 0:00:02]} 55. Kb5 {[%emt 0:00:00]} Rb4+ {[%emt 0:01:46]} 56. Qxb4 {[%emt 0:00:00]} cxb4 {[%emt 0:00:05]} 57. Kxb4 {[%emt 0:00:00]} Kc6 {[%emt 0:00:04]} 58. Ka5 {[%emt 0:00:00]} Kc5 {[%emt 0:00:09]} 59. b4+ {[%emt 0:00:00]} Kc4 {[%emt 0:00:14]} 60. h4 {[%emt 0:02:13]} 1-0

[Event "GER-chT Youth Countries 2020"]
[Site "Berlin"]
[Date "2020.10.04"]
[Round "7"]
[White "Kluehs, Gustaf"]
[Black "Junker, Magnus"]
[Result "0-1"]
[ECO "A08"]
[WhiteElo "1827"]
[BlackElo "2093"]
[Annotator "ChessBase"]
[PlyCount "54"]
[EventDate "2020.09.30"]
[EventType "team-tourn"]
[EventRounds "7"]
[EventCountry "GER"]
[SourceTitle "playchess.com"]
[Source "ChessBase"]
[SourceQuality "1"]
[TimeControl "30/5400+30:0"]

1. Nf3 {[%emt 0:00:00]} d5 {[%emt 0:00:00]} 2. g3 {[%emt 0:00:00]} c5 {[%emt 0:00:03]} 3. Bg2 {[%emt 0:00:00]} Nc6 {[%emt 0:00:06]} 4. d3 {[%emt 0:00:11]} e5 {[%emt 0:00:16]} 5. Nbd2 {[%emt 0:00:07]} f5 {[%emt 0:01:06]} 6. O-O {[%emt 0:02:08]} Nf6 {[%emt 0:00:06]} 7. e4 {[%emt 0:12:00]} fxe4 {[%emt 0:00:31]} 8. dxe4 {[%emt 0:00:06]} d4 {[%emt 0:00:10]} 9. Nh4 {[%emt 0:06:51]} Bg4 {[%emt 0:02:16]} 10. Bf3 {[%emt 0:02:03]} Bh3 {[%emt 0:02:48]} 11. Bg2 {[%emt 0:02:52]} Qd7 {[%emt 0:00:17]} 12. f4 {[%emt 0:13:05]} exf4 {[%emt 0:02:27]} 13. e5 {[%emt 0:21:11]} Nd5 {[%emt 0:03:34]} 14. Qh5+ {[%emt 0:01:16]} g6 {[%emt 0:00:16]} 15. Nxg6 {[%emt 0:00:44]} hxg6 {[%emt 0:00:05]} 16. Qxh8 {[%emt 0:02:10]} Bxg2 {[%emt 0:00:07]} 17. Kxg2 {[%emt 0:00:27]} Ne3+ {[%emt 0:00:06]} 18. Kg1 {[%emt 0:04:01]} Nxf1 {[%emt 0:00:07]} 19. Nxf1 {[%emt 0:01:47]} fxg3 {[%emt 0:01:22]} 20. Bg5 {[%emt 0:09:00]} Qg4 {[%emt 0:01:21]} 21. Bf6 {[%emt 0:05:09]} gxh2+ {[%emt 0:00:32]} 22. Kxh2 {[%emt 0:00:13]} Ne7 {[%emt 0:03:21]} 23. Bxe7 {[%emt 0:00:40]} Kxe7 {[%emt 0:00:05]} 24. Qh7+ {[%emt 0:01:26]} Ke6 {[%emt 0:01:19]} 25. Qxb7 {[%emt 0:00:15]} Rd8 {[%emt 0:01:35]} 26. Qc6+ {[%emt 0:01:14]} Bd6 {[%emt 0:00:10]} 27. exd6 {[%emt 0:00:18]} Rh8# {[%emt 0:00:39]} 0-1

[Event "GER-chT Youth Countries 2020"]
[Site "Berlin"]
[Date "2020.10.04"]
[Round "7"]
[White "Wagner, Margarethe"]
[Black "Schiewe, Nadin"]
[Result "1-0"]
[ECO "B01"]
[WhiteElo "1804"]
[BlackElo "1660"]
[Annotator "NA"]
[PlyCount "99"]
[EventDate "2020.09.30"]
[EventType "team-tourn"]
[EventRounds "7"]
[EventCountry "GER"]
[SourceTitle "playchess.com"]
[Source "ChessBase"]
[SourceQuality "1"]
[TimeControl "30/5400+30:0"]

1. e4 {[%emt 0:00:00]} d5 {[%emt 0:00:00]} 2. exd5 {[%emt 0:00:00]} Qxd5 {[%emt 0:00:00]} 3. Nc3 {[%emt 0:00:00]} Qa5 {[%emt 0:00:00]} 4. d4 {[%emt 0:00:06]} c6 {[%emt 0:00:06]} 5. Bc4 {[%emt 0:00:29]} Nf6 {[%emt 0:00:19]} 6. Nge2 {[%emt 0:05:11]} Bf5 {[%emt 0:01:48]} 7. Bd2 {[%emt 0:01:05]} Qc7 {[%emt 0:00:44]} 8. Bf4 {[%emt 0:03:17]} Qb6 {[%emt 0:04:01]} 9. Bb3 {[%emt 0:01:37]} e6 {[%emt 0:01:21]} 10. a3 {[%emt 0:01:49]} Be7 {[%emt 0:03:09]} 11. Ng3 {[%emt 0:00:54]} Bg6 {[%emt 0:01:25]} 12. O-O {[%emt 0:04:52]} O-O {[%emt 0:01:25]} 13. Na4 {[%emt 0:09:22]} Qd8 {[%emt 0:05:11]} 14. Nc5 {[%emt 0:04:59]} b6 {[%emt 0:01:40]} 15. Na4 {[%emt 0:03:12]} Bd6 {[%emt 0:03:12]} 16. Qf3 {[%emt 0:04:47]} Qc7 {[%emt 0:02:28]} 17. Bxd6 {[%emt 0:00:31]} Qxd6 {[%emt 0:00:10]} 18. Rad1 {[%emt 0:00:15]} Nbd7 {[%emt 0:20:32]} 19. Nc3 {[%emt 0:05:57]} Rac8 {[%emt 0:07:16]} 20. Nce2 {[%emt 0:09:23]} c5 {[%emt 0:07:26]} 21. c3 {[%emt 0:05:16]} c4 {[%emt 0:07:04]} 22. Ba2 {[%emt 0:00:20]} Qd5 {[%emt 0:02:30]} 23. Qe3 {[%emt 0:04:07]} Ng4 {[%emt 0:04:18]} 24. Qc1 {[%emt 0:03:13]} Ndf6 {[%emt 0:06:36]} 25. Nf4 {[%emt 0:02:21]} Qd6 {[%emt 0:03:57]} 26. h3 {[%emt 0:05:02]} Nh6 {[%emt 0:00:30]} 27. Nxg6 {[%emt 0:01:35]} hxg6 {[%emt 0:00:08]} 28. Rfe1 {[%emt 0:00:28]} Nf5 {[%emt 0:03:26]} 29. Nxf5 {[%emt 0:01:00]} gxf5 {[%emt 0:00:40]} 30. Bb1 {[%emt 0:01:08]} Nd5 {[%emt 0:02:30]} 31. Qg5 {[%emt 1:35:00]} b5 {[%emt 1:31:12]} 32. Qg3 {[%emt 0:01:05]} Rfd8 {[%emt 0:05:07]} 33. Qf3 {[%emt 0:03:39]} g6 {[%emt 0:01:24]} 34. g4 {[%emt 0:01:48]} fxg4 {[%emt 0:01:45]} 35. Qxg4 {[%emt 0:02:11]} Kg7 {[%emt 0:00:45]} 36. Re5 {[%emt 0:00:58]} Rh8 {[%emt 0:01:28]} 37. Rde1 {[%emt 0:03:34]} Rh6 {[%emt 0:00:44]} 38. Kg2 {[%emt 0:03:12]} Rch8 {[%emt 0:00:45]} 39. Rh1 {[%emt 0:03:55]} Rh4 {[%emt 0:00:43]} 40. Qg3 {[%emt 0:01:01]} Nf4+ {[%emt 0:00:42]} 41. Kf1 {[%emt 0:00:00]} Rxh3 {[%emt 0:00:00]} 42. Rxh3 {[%emt 0:00:00]} Nxh3 {[%emt 0:00:00]} 43. Be4 {[%emt 0:00:00]} a6 {[%emt 0:00:00]} 44. d5 {[%emt 0:00:00]} Rh6 {[%emt 0:00:00]} 45. Bg2 {[%emt 0:00:00]} Kf6 {[%emt 0:00:00]} 46. Rxe6+ {[%emt 0:00:00]} Qxe6 {[%emt 0:00:00]} 47. dxe6 {[%emt 0:00:00]} Ng5 {[%emt 0:00:00]} 48. e7 {[%emt 0:00:00]} Rh8 {[%emt 0:00:00]} 49. Qd6+ {[%emt 0:00:00]} Kg7 {[%emt 0:00:00]} 50. Qd8 {[%emt 0:00:00]} 1-0

[Event "GER-chT Youth Countries 2020"]
[Site "Berlin"]
[Date "2020.10.04"]
[Round "7"]
[White "Mundt, Alexandra"]
[Black "Poetsch, Leonore"]
[Result "1/2-1/2"]
[ECO "C12"]
[WhiteElo "1786"]
[BlackElo "1984"]
[Annotator "ChessBase"]
[PlyCount "82"]
[EventDate "2020.09.30"]
[EventType "team-tourn"]
[EventRounds "7"]
[EventCountry "GER"]
[SourceTitle "playchess.com"]
[Source "ChessBase"]
[SourceQuality "1"]
[TimeControl "30/5400+30:0"]

1. e4 {[%emt 0:00:00]} e6 {[%emt 0:00:00]} 2. d4 {[%emt 0:00:00]} d5 {[%emt 0:00:00]} 3. Nc3 {[%emt 0:00:00]} Nf6 {[%emt 0:00:00]} 4. Bg5 {[%emt 0:00:00]} Bb4 {[%emt 0:00:00]} 5. a3 {[%emt 0:00:14]} Bxc3+ {[%emt 0:00:37]} 6. bxc3 {[%emt 0:00:05]} dxe4 {[%emt 0:01:02]} 7. Ne2 {[%emt 0:01:15]} b6 {[%emt 0:03:36]} 8. Ng3 {[%emt 0:01:48]} Bb7 {[%emt 0:01:00]} 9. Bb5+ {[%emt 0:00:16]} c6 {[%emt 0:01:31]} 10. Be2 {[%emt 0:01:41]} Nbd7 {[%emt 0:02:21]} 11. Nxe4 {[%emt 0:01:06]} Qc7 {[%emt 0:01:40]} 12. Nxf6+ {[%emt 0:00:50]} gxf6 {[%emt 0:00:50]} 13. Bh4 {[%emt 0:00:46]} O-O-O {[%emt 0:01:44]} 14. Bg3 {[%emt 0:02:55]} e5 {[%emt 0:00:09]} 15. O-O {[%emt 0:10:09]} c5 {[%emt 0:07:55]} 16. Bf3 {[%emt 0:07:15]} cxd4 {[%emt 0:04:04]} 17. cxd4 {[%emt 0:00:22]} Qc3 {[%emt 0:01:32]} 18. Bxb7+ {[%emt 0:13:20]} Kxb7 {[%emt 0:00:07]} 19. dxe5 {[%emt 0:00:18]} fxe5 {[%emt 0:03:30]} 20. Qd5+ {[%emt 0:00:39]} Qc6 {[%emt 0:02:47]} 21. Rfd1 {[%emt 0:03:31]} Qxd5 {[%emt 0:07:38]} 22. Rxd5 {[%emt 0:00:12]} f6 {[%emt 0:01:16]} 23. Rad1 {[%emt 0:02:50]} Kc8 {[%emt 0:02:39]} 24. Bh4 {[%emt 0:00:57]} Rhf8 {[%emt 0:04:37]} 25. Kf1 {[%emt 0:00:42]} Rf7 {[%emt 0:02:05]} 26. Rd6 {[%emt 0:07:17]} Re8 {[%emt 0:03:38]} 27. Rc6+ {[%emt 0:08:30]} Kb7 {[%emt 0:01:30]} 28. Rcd6 {[%emt 0:05:16]} Kc7 {[%emt 0:01:31]} 29. f3 {[%emt 0:03:28]} f5 {[%emt 0:02:53]} 30. a4 {[%emt 0:05:21]} e4 {[%emt 0:03:48]} 31. a5 {[%emt 1:33:36]} Ne5 {[%emt 1:37:31]} 32. axb6+ {[%emt 0:02:08]} axb6 {[%emt 0:00:11]} 33. Bd8+ {[%emt 0:04:36]} Kc8 {[%emt 0:07:02]} 34. Bxb6 {[%emt 0:00:48]} exf3 {[%emt 0:02:26]} 35. gxf3 {[%emt 0:05:30]} Nxf3 {[%emt 0:03:13]} 36. Ra1 {[%emt 0:03:49]} Kb8 {[%emt 0:04:56]} 37. h3 {[%emt 0:03:11]} Rc8 {[%emt 0:10:40]} 38. Ra2 {[%emt 0:01:42]} Ne5 {[%emt 0:01:36]} 39. Bf2 {[%emt 0:01:49]} Nc4 {[%emt 0:02:39]} 40. Rd3 {[%emt 0:00:31]} Rff8 {[%emt 0:03:10]} 41. Ra4 {[%emt 0:00:00]} Ne5 {[%emt 0:00:00]} 1/2-1/2

[Event "GER-chT Youth Countries 2020"]
[Site "Berlin"]
[Date "2020.10.04"]
[Round "7"]
[White "Yue, Qizhou"]
[Black "Schulz, Hannah"]
[Result "1-0"]
[ECO "B10"]
[WhiteElo "1775"]
[BlackElo "1589"]
[Annotator "NA"]
[PlyCount "89"]
[EventDate "2020.09.30"]
[EventType "team-tourn"]
[EventRounds "7"]
[EventCountry "GER"]
[SourceTitle "playchess.com"]
[Source "ChessBase"]
[SourceQuality "1"]
[TimeControl "30/5400+30:0"]

1. e4 c6 {[%emt 0:00:00]} 2. Nc3 {[%emt 0:00:21]} d5 {[%emt 0:00:05]} 3. Nf3 {[%emt 0:00:30]} dxe4 {[%emt 0:00:17]} 4. Nxe4 {[%emt 0:00:09]} Nf6 {[%emt 0:00:04]} 5. Qe2 {[%emt 0:00:23]} e6 {[%emt 0:10:54]} 6. Nxf6+ {[%emt 0:11:47]} Qxf6 {[%emt 0:00:23]} 7. d4 {[%emt 0:01:02]} Qd8 {[%emt 0:01:56]} 8. c3 {[%emt 0:07:46]} Nd7 {[%emt 0:01:01]} 9. Bf4 {[%emt 0:02:44]} Nf6 {[%emt 0:00:30]} 10. Qc2 {[%emt 0:06:21]} Bd6 11. Bxd6 {[%emt 0:01:54]} Qxd6 {[%emt 0:05:43]} 12. Bd3 {[%emt 0:01:19]} Bd7 {[%emt 0:00:51]} 13. O-O {[%emt 0:01:53]} O-O {[%emt 0:01:11]} 14. Rad1 {[%emt 0:03:51]} Rad8 {[%emt 0:02:09]} 15. Rfe1 {[%emt 0:02:31]} c5 {[%emt 0:02:04]} 16. dxc5 {[%emt 0:17:36]} Qxc5 {[%emt 0:01:23]} 17. Ne5 {[%emt 0:01:33]} Bc6 {[%emt 0:05:40]} 18. b4 {[%emt 0:06:31]} Qb6 {[%emt 0:01:14]} 19. a4 {[%emt 0:02:20]} h6 {[%emt 0:03:16]} 20. a5 {[%emt 0:06:28]} Qc7 {[%emt 0:00:45]} 21. c4 {[%emt 0:01:50]} Nd7 {[%emt 0:04:02]} 22. Nxd7 {[%emt 0:04:08]} Bxd7 {[%emt 0:00:32]} 23. Qe2 {[%emt 0:01:34]} a6 {[%emt 0:00:52]} 24. Qe4 {[%emt 0:01:01]} g6 {[%emt 0:01:25]} 25. Qh4 {[%emt 0:00:30]} Kh7 {[%emt 0:03:04]} 26. Re3 {[%emt 0:03:02]} e5 {[%emt 0:06:37]} 27. g4 {[%emt 0:01:00]} Kg7 {[%emt 0:01:40]} 28. Rde1 {[%emt 0:02:21]} Be6 {[%emt 0:01:30]} 29. Qg3 {[%emt 0:02:16]} Rd4 {[%emt 0:05:00]} 30. h3 {[%emt 0:02:12]} Rfd8 {[%emt 0:02:29]} 31. Bf1 {[%emt 1:31:12]} R8d7 {[%emt 1:37:58]} 32. Qxe5+ {[%emt 0:01:27]} Qxe5 {[%emt 0:00:19]} 33. Rxe5 {[%emt 0:00:04]} Bxc4 {[%emt 0:00:19]} 34. Bxc4 {[%emt 0:00:24]} Rxc4 {[%emt 0:00:12]} 35. R5e4 {[%emt 0:01:15]} Rdd4 {[%emt 0:00:56]} 36. Rxd4 {[%emt 0:00:09]} Rxd4 {[%emt 0:00:05]} 37. Rb1 {[%emt 0:00:08]} Rd5 {[%emt 0:00:35]} 38. Kg2 {[%emt 0:01:19]} Kf6 {[%emt 0:00:34]} 39. Kf3 {[%emt 0:02:13]} Ke5 {[%emt 0:02:22]} 40. Ke3 {[%emt 0:00:20]} f5 {[%emt 0:02:23]} 41. f4+ {[%emt 0:02:05]} Kd6 {[%emt 0:02:16]} 42. Rc1 {[%emt 0:01:06]} fxg4 {[%emt 0:02:21]} 43. hxg4 {[%emt 0:00:10]} h5 {[%emt 0:01:00]} 44. gxh5 {[%emt 0:00:00]} Rxh5 {[%emt 0:00:00]} 45. Rg1 {[%emt 0:00:00]} 1-0

[Event "GER-chT Youth Countries 2020"]
[Site "Berlin"]
[Date "2020.10.04"]
[Round "7"]
[White "Basovskiy, Jana"]
[Black "Reitz, Theresa"]
[Result "1-0"]
[ECO "B01"]
[WhiteElo "1760"]
[BlackElo "1886"]
[Annotator "NA"]
[PlyCount "68"]
[EventDate "2020.09.30"]
[EventType "team-tourn"]
[EventRounds "7"]
[EventCountry "GER"]
[SourceTitle "playchess.com"]
[Source "ChessBase"]
[SourceQuality "1"]
[TimeControl "30/5400+30:0"]

1. e4 {[%emt 0:00:00]} d5 {[%emt 0:00:00]} 2. exd5 {[%emt 0:00:00]} Qxd5 {[%emt 0:00:00]} 3. Nc3 {[%emt 0:00:00]} Qd6 {[%emt 0:00:00]} 4. d4 {[%emt 0:01:00]} Nf6 {[%emt 0:00:09]} 5. Nf3 {[%emt 0:00:32]} a6 {[%emt 0:00:20]} 6. g3 {[%emt 0:01:01]} Bg4 {[%emt 0:00:25]} 7. h3 {[%emt 0:01:13]} Bh5 {[%emt 0:00:16]} 8. Bg2 {[%emt 0:00:42]} Nc6 {[%emt 0:00:21]} 9. O-O {[%emt 0:11:12]} O-O-O {[%emt 0:00:47]} 10. Bf4 {[%emt 0:03:31]} Qb4 {[%emt 0:02:04]} 11. g4 {[%emt 0:01:52]} Bg6 {[%emt 0:00:27]} 12. a3 {[%emt 0:01:39]} Qxb2 {[%emt 0:12:45]} 13. Qe1 {[%emt 0:00:20]} e6 {[%emt 0:19:27]} 14. Rb1 {[%emt 0:22:03]} Qxa3 {[%emt 0:03:11]} 15. Ne5 {[%emt 0:08:44]} Nd5 {[%emt 0:06:07]} 16. Nxd5 {[%emt 0:20:42]} exd5 {[%emt 0:01:01]} 17. Nxc6 {[%emt 0:00:20]} bxc6 {[%emt 0:00:45]} 18. Rb3 {[%emt 0:00:12]} Qa4 {[%emt 0:02:32]} 19. Qb1 {[%emt 0:03:20]} Kd7 {[%emt 0:07:49]} 20. Qb2 {[%emt 0:09:08]} Bd6 {[%emt 0:08:06]} 21. Bxd6 {[%emt 0:07:45]} Kxd6 {[%emt 0:00:28]} 22. Rc1 {[%emt 0:02:13]} Qc4 {[%emt 0:05:08]} 23. Bf1 {[%emt 0:00:28]} Qa4 {[%emt 0:03:04]} 24. Ra1 {[%emt 0:00:49]} Qxa1 {[%emt 0:00:40]} 25. Qxa1 {[%emt 0:00:01]} Rb8 {[%emt 0:01:51]} 26. Qa3+ {[%emt 0:00:54]} Kd7 {[%emt 0:00:17]} 27. Re3 {[%emt 0:00:50]} Rhe8 {[%emt 0:00:18]} 28. Rxe8 {[%emt 0:00:52]} Rxe8 {[%emt 0:00:03]} 29. Qc3 {[%emt 0:00:11]} Ra8 {[%emt 0:01:02]} 30. Qc5 {[%emt 0:00:29]} Be4 {[%emt 0:01:19]} 31. Bg2 {[%emt 1:30:32]} Bxg2 {[%emt 1:30:18]} 32. Kxg2 {[%emt 0:00:01]} a5 {[%emt 0:00:09]} 33. c4 {[%emt 0:00:32]} dxc4 {[%emt 0:01:53]} 34. Qxc4 {[%emt 0:00:34]} Kd6 {[%emt 0:00:42]} 1-0